fUSD/lending_fUSD_20250120
["ID","MTS","AMOUNT","RATE_DAILY","PERIOD"]
[349623755,1737331837868,-505.45,0.0002076,2]
[349623756,1737331837879,-2667.26,0.0002076,2]
[349623757,1737331837889,-500.0,0.0002076,2]
[349623758,1737331837899,-797.44,0.0002076,2]
[349623759,1737331837911,-981.74,0.0002076,2]
[349623760,1737331837922,-500.0,0.0002076,2]
[349623761,1737331837932,-535.63,0.0002076,2]
[349623762,1737331837942,-500.0,0.0002076,2]
[349623763,1737331838182,-500.0,0.00020761,2]
[349623764,1737331838193,-665.36931186,0.00020797,2]
[349623765,1737331838204,-6660.97600988,0.000208,2]
[349623766,1737331838215,-6660.97600988,0.00020802,2]
[349623767,1737331838225,-200.0,0.00020811,2]
[349623768,1737331838241,-152.0,0.00020814,3]
[349623769,1737331838253,-6660.97600988,0.00020815,2]
[349623770,1737331838263,-277.24137036,0.00020829,2]
[349623771,1737331838273,-203.37981308,0.00020836,2]
[349623772,1737331838284,-1219.16,0.00020836,2]
[349623773,1737331838294,-4440.65067325,0.00020854,2]
[349623774,1737331838304,-277.24137036,0.00020855,2]
[349623775,1737331838314,-665.36931186,0.00020866,2]
[349623776,1737331838324,-203.37981308,0.00020872,2]
[349623777,1737331838334,-203.37981308,0.00020873,2]
[349623778,1737331838344,-6660.97600988,0.00020874,2]
[349623779,1737331838355,-4440.65067325,0.00020881,2]
[349623780,1737331838365,-4440.65067325,0.00020889,2]
[349623781,1737331838375,-277.24137036,0.0002089,2]
[349623782,1737331838385,-277.24137036,0.00020891,2]
[349623783,1737331838395,-203.37981308,0.00020892,2]
[349623784,1737331838404,-1127.77,0.00020898,2]
[349623785,1737331838414,-4440.65067325,0.000209,2]
[349623786,1737331838424,-6660.97600988,0.00020911,2]
[349623787,1737331838433,-277.24137036,0.00020921,2]
[349623788,1737331838444,-337.14997499,0.00020933,2]
[349623789,1737331838454,-665.36931186,0.00020934,2]
[349623790,1737331838464,-4440.65067325,0.00020938,2]
[349623791,1737331838474,-203.37981308,0.00020943,2]
[349623792,1737331838489,-178.86,0.00020981,2]
[349623794,1737331838499,-500.0,0.00020981,2]
[349623797,1737331838509,-500.0,0.00020981,2]
[349623799,1737331838519,-640.6929779,0.00020981,2]
[349623801,1737331838528,-1000.0,0.00020982,2]
[349623803,1737331838538,-700.0,0.00021,2]
[349623805,1737331838551,-173.56,0.00021,2]
[349623807,1737331838562,-665.36931186,0.00021003,2]
[349623809,1737331838572,-500.0,0.00021032,2]
[349623812,1737331838582,-1407.19,0.00021032,2]
[349623815,1737331838596,-715.27,0.00021032,2]
[349623817,1737331838607,-500.0,0.00021032,2]
[349623819,1737331838617,-3428.58,0.00021032,2]
[349623821,1737331838627,-500.0,0.00021032,2]
[349623823,1737331838638,-577.275526,0.00021032,2]
[349623825,1737331838648,-500.0,0.00021032,2]
[349623827,1737331838658,-716.0,0.00021032,2]
[349623829,1737331838668,-1480.72,0.00021032,2]
[349623832,1737331838679,-1596.848053,0.00021032,2]
[349623834,1737331838689,-500.0,0.00021032,2]
[349623836,1737331838698,-500.0,0.00021032,2]
[349623838,1737331838709,-3819.17,0.00021032,2]
[349623840,1737331838719,-500.0,0.00021032,2]
[349623842,1737331838732,-500.0,0.00021032,2]
[349623844,1737331838743,-501.19,0.00021032,2]
[349623846,1737331838753,-500.0,0.00021032,2]
[349623848,1737331838763,-500.0,0.00021032,2]
[349623850,1737331838772,-1758.89,0.00021032,2]
[349623852,1737331838782,-500.0,0.00021032,2]
[349623854,1737331838792,-553.95,0.00021032,2]
[349623856,1737331838802,-500.0,0.00021032,2]
[349623857,1737331838812,-500.0,0.00021032,2]
[349623859,1737331838821,-855.39,0.00021032,2]
[349623860,1737331838832,-880.7,0.00021032,2]
[349623862,1737331838843,-500.0,0.00021032,2]
[349623864,1737331838855,-500.0,0.00021032,2]
[349623867,1737331838866,-500.0,0.00021033,2]
[349623869,1737331838878,-500.0,0.00021033,2]
[349623870,1737331838888,-500.0,0.00021033,2]
[349623872,1737331838900,-500.0,0.00021033,2]
[349623874,1737331838912,-500.0,0.00021033,2]
[349623875,1737331838922,-500.0,0.00021033,2]
[349623876,1737331838933,-500.0,0.00021033,2]
[349623877,1737331838943,-500.0,0.00021033,2]
[349623878,1737331838954,-500.0,0.00021033,2]
[349623879,1737331838965,-500.0,0.00021033,2]
[349623880,1737331838976,-426.86415236,0.00021033,2]
[349623881,1737331838993,-500.0,0.00021033,2]
[349623882,1737331839004,-500.0,0.00021033,2]
[349623883,1737331839014,-500.0,0.00021033,2]
[349623884,1737331839027,-500.0,0.00021033,2]
[349623885,1737331839039,-500.0,0.00021033,2]
[349623886,1737331839051,-500.0,0.00021033,2]
[349623887,1737331839062,-500.0,0.00021033,2]
[349623888,1737331839073,-500.0,0.00021033,2]
[349623889,1737331839083,-500.0,0.00021033,2]
[349623890,1737331839093,-500.0,0.00021033,2]
[349623891,1737331839104,-500.0,0.00021033,2]
[349623892,1737331839113,-500.0,0.00021033,2]
[349623893,1737331839123,-500.0,0.00021033,2]
[349623894,1737331839133,-500.0,0.00021033,2]
[349623895,1737331839143,-500.0,0.00021033,2]
[349623896,1737331839153,-500.0,0.00021033,2]
[349623897,1737331839163,-500.0,0.00021033,2]
[349623898,1737331839173,-500.0,0.00021033,2]
[349623899,1737331839183,-500.0,0.00021033,2]
[349623900,1737331839193,-500.0,0.00021033,2]
[349623901,1737331839205,-525.68,0.00021033,2]
[349623902,1737331839217,-500.0,0.00021033,2]
[349623903,1737331839228,-500.0,0.00021033,2]
[349623904,1737331839249,-500.0,0.00021033,2]
[349623905,1737331839259,-445.22995733,0.00021033,2]
[349623906,1737331839270,-566.64,0.00021033,2]
[349623907,1737331839280,-272.22,0.00021033,2]
[349623908,1737331839291,-500.0,0.00021033,2]
[349623909,1737331839302,-500.0,0.00021033,2]
[349623910,1737331839313,-500.0,0.00021033,2]
[349623911,1737331839324,-500.0,0.00021033,2]
[349623912,1737331839335,-500.0,0.00021033,2]
[349623913,1737331839345,-500.0,0.00021033,2]
[349623914,1737331839356,-500.0,0.00021033,2]
[349623915,1737331839366,-500.0,0.00021033,2]
[349623916,1737331839376,-500.0,0.00021033,2]
[349623917,1737331839387,-500.0,0.00021033,2]
[349623918,1737331839398,-500.0,0.00021033,2]
[349623919,1737331839408,-486.63250814,0.00021033,2]
[349623920,1737331839419,-500.0,0.00021033,2]
[349623921,1737331839429,-500.0,0.00021033,2]
[349623922,1737331839439,-500.0,0.00021033,2]
[349623923,1737331839449,-500.0,0.00021033,2]
[349623924,1737331839460,-500.0,0.00021033,2]
[349623925,1737331839469,-500.0,0.00021033,2]
[349623926,1737331839485,-568.58,0.00021033,2]
[349623927,1737331839495,-500.0,0.00021033,2]
[349623928,1737331839505,-500.0,0.00021033,2]
[349623929,1737331839516,-2037.09,0.00021033,2]
[349623930,1737331839525,-500.0,0.00021033,2]
[349623931,1737331839536,-500.0,0.00021033,2]
[349623932,1737331839546,-500.0,0.00021033,2]
[349623933,1737331839556,-1003.46,0.00021033,2]
[349623934,1737331839567,-1650.22,0.00021033,2]
[349623935,1737331839577,-500.0,0.00021033,2]
[349623936,1737331839588,-500.0,0.00021033,2]
[349623937,1737331839599,-873.76,0.00021033,2]
[349623938,1737331839612,-500.0,0.00021033,2]
[349623939,1737331839623,-500.0,0.00021033,2]
[349623940,1737331839634,-510.50968268,0.00021033,2]
[349623941,1737331839644,-198.5,0.00021033,2]
[349623942,1737331839654,-500.0,0.00021033,2]
[349623943,1737331839666,-500.0,0.00021033,2]
[349623944,1737331839676,-500.0,0.00021033,2]
[349623945,1737331839686,-168.53,0.00021033,2]
[349623946,1737331839697,-500.0,0.00021033,2]
[349623948,1737331839707,-500.0,0.00021033,2]
[349623949,1737331839718,-500.0,0.00021033,2]
[349623950,1737331839727,-500.0,0.00021033,2]
[349623951,1737331839741,-500.0,0.00021034,2]
[349623952,1737331839750,-1308.01,0.00021034,2]
[349623953,1737331839761,-500.0,0.00021034,2]
[349623954,1737331839772,-595.86,0.00021034,2]
[349623955,1737331839782,-3190.58,0.00021034,2]
[349623956,1737331839793,-515.69,0.00021034,2]
[349623957,1737331839803,-646.9,0.00021034,2]
[349623958,1737331839813,-1007.69,0.00021034,2]
[349623959,1737331839823,-1003.12,0.00021034,2]
[349623960,1737331839833,-500.0,0.00021034,2]
[349623961,1737331839842,-865.71,0.00021034,2]
[349623962,1737331839853,-500.0,0.00021034,2]
[349623964,1737331839862,-500.0,0.00021034,2]
[349623965,1737331839872,-1789.74,0.00021034,2]
[349623966,1737331839881,-989.04,0.00021034,2]
[349623967,1737331839890,-542.42,0.00021034,2]
[349623968,1737331839899,-500.0,0.00021034,2]
[349623969,1737331839909,-500.0,0.00021034,2]
[349623972,1737331839919,-505.45,0.00021034,2]
[349623976,1737331839928,-2667.26,0.00021034,2]
[349623979,1737331839938,-500.0,0.00021034,2]
[349623982,1737331839948,-797.44,0.00021034,2]
[349623983,1737331839957,-981.74,0.00021034,2]
[349623984,1737331839967,-500.0,0.00021034,2]
[349623985,1737331839977,-535.63,0.00021034,2]
[349623986,1737331839991,-500.0,0.00021034,2]
[349623987,1737331840001,-500.0,0.00021035,2]
[349623988,1737331840014,-150.0,0.00021041,2]
[349623989,1737331840024,-981.3,0.00021041,2]
[349623990,1737331840033,-981.3,0.00021041,2]
[349623991,1737331840043,-981.3,0.00021041,2]
[349623992,1737331840055,-665.36931186,0.00021072,2]
[349623993,1737331840065,-665.36931186,0.00021141,2]
[349623994,1737331840075,-150.0,0.00021178,2]
[349623995,1737331840085,-981.3,0.00021178,2]
[349623996,1737331840095,-150.0,0.00021178,2]
[349623997,1737331840105,-437.39,0.00021178,2]
[349623998,1737331840118,-150.0,0.00021178,2]
[349623999,1737331840128,-150.0,0.00021178,2]
[349624000,1737331840137,-150.0,0.00021178,2]
[349624001,1737331840147,-150.0,0.00021178,2]
[349624002,1737331840157,-150.0,0.00021178,2]
[349624003,1737331840166,-150.0,0.00021178,2]
[349624004,1737331840176,-150.0,0.00021178,2]
[349624005,1737331840186,-1276.84,0.00021199,30]
[349624006,1737331840196,-665.36931186,0.0002121,2]
[349624007,1737331840206,-500.0,0.00021255,2]
[349624008,1737331840217,-665.36931186,0.00021279,2]
[349624009,1737331840227,-500.0,0.00021306,2]
[349624010,1737331840244,-1407.19,0.00021306,2]
[349624011,1737331840254,-715.27,0.00021306,2]
[349624012,1737331840263,-500.0,0.00021306,2]
[349624013,1737331840272,-3428.58,0.00021306,2]
[349624014,1737331840283,-500.0,0.00021306,2]
[349624015,1737331840294,-577.275526,0.00021306,2]
[349624016,1737331840304,-716.0,0.00021306,2]
[349624017,1737331840314,-1480.72,0.00021306,2]
[349624018,1737331840323,-1596.848053,0.00021306,2]
[349624019,1737331840333,-500.0,0.00021306,2]
[349624020,1737331840344,-500.0,0.00021306,2]
[349624021,1737331840355,-3819.17,0.00021306,2]
[349624022,1737331840365,-500.0,0.00021306,2]
[349624023,1737331840375,-500.0,0.00021306,2]
[349624024,1737331840385,-501.19,0.00021306,2]
[349624025,1737331840395,-307.12,0.00021306,2]
[349624026,1737331840405,-500.0,0.00021306,2]
[349624027,1737331840414,-1758.89,0.00021306,2]
[349624028,1737331840424,-500.0,0.00021306,2]
[349624029,1737331840435,-553.95,0.00021306,2]
[349624030,1737331840444,-500.0,0.00021306,2]
[349624031,1737331840454,-500.0,0.00021306,2]
[349624032,1737331840465,-855.39,0.00021306,2]
[349624033,1737331840475,-880.7,0.00021306,2]
[349624034,1737331840490,-500.0,0.00021306,2]
[349624035,1737331840500,-500.0,0.00021307,2]
[349624036,1737331840509,-500.0,0.00021307,2]
[349624037,1737331840519,-500.0,0.00021307,2]
[349624038,1737331840528,-500.0,0.00021307,2]
[349624039,1737331840539,-500.0,0.00021307,2]
[349624040,1737331840549,-500.0,0.00021307,2]
[349624041,1737331840559,-510.62090191,0.00021307,2]
[349624042,1737331840569,-500.0,0.00021307,2]
[349624043,1737331840579,-500.0,0.00021307,2]
[349624044,1737331840588,-500.0,0.00021307,2]
[349624045,1737331840598,-500.0,0.00021307,2]
[349624046,1737331840607,-500.0,0.00021307,2]
[349624047,1737331840617,-564.64,0.00021307,2]
[349624048,1737331840627,-500.0,0.00021307,2]
[349624049,1737331840636,-537.98,0.00021307,2]
[349624050,1737331840646,-500.0,0.00021307,2]
[349624051,1737331840656,-500.0,0.00021307,2]
[349624052,1737331840666,-500.0,0.00021307,2]
[349624053,1737331840675,-500.0,0.00021307,2]
[349624054,1737331840684,-500.0,0.00021307,2]
[349624055,1737331840694,-500.0,0.00021307,2]
[349624056,1737331840703,-500.0,0.00021307,2]
[349624057,1737331840720,-364.16,0.00021307,2]
[349624059,1737331840730,-500.0,0.00021307,2]
[349624061,1737331840743,-500.0,0.00021307,2]
[349624063,1737331840752,-500.0,0.00021307,2]
[349624064,1737331840762,-500.0,0.00021307,2]
[349624072,1737331840821,-500.0,0.00021307,2]
[349624074,1737331840831,-500.0,0.00021307,2]
[349624075,1737331840840,-500.0,0.00021307,2]
[349624077,1737331840850,-500.0,0.00021307,2]
[349624079,1737331840859,-500.0,0.00021307,2]
[349624081,1737331840868,-566.64,0.00021307,2]
[349624083,1737331840878,-500.0,0.00021307,2]
[349624085,1737331840887,-500.0,0.00021307,2]
[349624087,1737331840896,-500.0,0.00021307,2]
[349624089,1737331840905,-500.0,0.00021307,2]
[349624091,1737331840915,-500.0,0.00021307,2]
[349624093,1737331840924,-500.0,0.00021307,2]
[349624095,1737331840934,-500.0,0.00021307,2]
[349624097,1737331840943,-500.0,0.00021307,2]
[349624099,1737331840952,-503.84331831,0.00021307,2]
[349624101,1737331840961,-500.0,0.00021307,2]
[349624103,1737331840970,-500.0,0.00021307,2]
[349624105,1737331840979,-500.0,0.00021307,2]
[349624107,1737331840994,-500.0,0.00021307,2]
[349624109,1737331841004,-500.0,0.00021307,2]
[349624111,1737331841013,-500.0,0.00021307,2]
[349624113,1737331841022,-568.58,0.00021307,2]
[349624115,1737331841035,-500.0,0.00021307,2]
[349624117,1737331841044,-500.0,0.00021307,2]
[349624119,1737331841053,-2037.09,0.00021307,2]
[349624121,1737331841062,-500.0,0.00021307,2]
[349624122,1737331841072,-500.0,0.00021307,2]
[349624123,1737331841082,-500.0,0.00021307,2]
[349624124,1737331841092,-1003.46,0.00021307,2]
[349624125,1737331841102,-1650.22,0.00021307,2]
[349624126,1737331841113,-500.0,0.00021307,2]
[349624127,1737331841124,-500.0,0.00021307,2]
[349624128,1737331841134,-873.76,0.00021307,2]
[349624129,1737331841143,-509.52724837,0.00021307,2]
[349624130,1737331841153,-500.0,0.00021307,2]
[349624131,1737331841164,-202.25,0.00021307,2]
[349624132,1737331841174,-500.0,0.00021307,2]
[349624133,1737331841183,-500.0,0.00021307,2]
[349624134,1737331841192,-500.0,0.00021307,2]
[349624135,1737331841203,-500.0,0.00021307,2]
[349624136,1737331841212,-500.0,0.00021307,2]
[349624137,1737331841222,-500.0,0.00021308,2]
[349624138,1737331841234,-1308.01,0.00021308,2]
[349624139,1737331841244,-500.0,0.00021308,2]
[349624140,1737331841254,-595.86,0.00021308,2]
[349624141,1737331841264,-3190.58,0.00021308,2]
[349624142,1737331841274,-515.69,0.00021308,2]
[349624143,1737331841287,-646.9,0.00021308,2]
[349624144,1737331841296,-1007.69,0.00021308,2]
[349624145,1737331841305,-1003.12,0.00021308,2]
[349624146,1737331841315,-500.0,0.00021308,2]
[349624147,1737331841324,-865.71,0.00021308,2]
[349624148,1737331841334,-500.0,0.00021308,2]
[349624149,1737331841343,-500.0,0.00021308,2]
[349624150,1737331841352,-1789.74,0.00021308,2]
[349624151,1737331841361,-989.04,0.00021308,2]
[349624152,1737331841371,-542.42,0.00021308,2]
[349624153,1737331841380,-500.0,0.00021308,2]
[349624154,1737331841389,-500.0,0.00021308,2]
[349624155,1737331841398,-505.45,0.00021308,2]
[349624156,1737331841407,-2667.26,0.00021308,2]
[349624157,1737331841417,-500.0,0.00021308,2]
[349624158,1737331841426,-797.44,0.00021308,2]
[349624159,1737331841436,-981.74,0.00021308,2]
[349624160,1737331841445,-500.0,0.00021308,2]
[349624161,1737331841454,-535.63,0.00021308,2]
[349624162,1737331841464,-500.0,0.00021308,2]
[349624163,1737331841474,-500.0,0.00021309,2]
[349624164,1737331841488,-665.36931186,0.00021348,2]
[349624165,1737331841497,-900.0,0.00021356,2]
[349624166,1737331841508,-665.36931186,0.00021417,2]
[349624167,1737331841517,-665.36931186,0.00021486,2]
[349624168,1737331841526,-587.0,0.00021506,2]
[349624169,1737331841535,-296.88274044,0.00021529,2]
[349624170,1737331841545,-665.36931186,0.00021555,2]
[349624171,1737331841554,-500.0,0.0002158,2]
[349624172,1737331841563,-1407.19,0.0002158,2]
[349624173,1737331841572,-715.27,0.0002158,2]
[349624174,1737331841581,-500.0,0.0002158,2]
[349624175,1737331841591,-3428.58,0.0002158,2]
[349624176,1737331841601,-500.0,0.0002158,2]
[349624177,1737331841611,-577.275526,0.0002158,2]
[349624178,1737331841620,-716.0,0.0002158,2]
[349624179,1737331841629,-1480.72,0.0002158,2]
[349624180,1737331841639,-1596.848053,0.0002158,2]
[349624181,1737331841650,-500.0,0.0002158,2]
[349624182,1737331841659,-3819.17,0.0002158,2]
[349624183,1737331841669,-500.0,0.0002158,2]
[349624184,1737331841678,-500.0,0.0002158,2]
[349624185,1737331841689,-501.19,0.0002158,2]
[349624186,1737331841698,-500.0,0.0002158,2]
[349624187,1737331841708,-1758.89,0.0002158,2]
[349624188,1737331841718,-500.0,0.0002158,2]
[349624189,1737331841728,-553.95,0.0002158,2]
[349624190,1737331841743,-500.0,0.0002158,2]
[349624191,1737331841753,-294.30231253,0.0002158,2]
[349624192,1737331841762,-855.39,0.0002158,2]
[349624193,1737331841772,-880.7,0.0002158,2]
[349624194,1737331841782,-500.0,0.0002158,2]
[349624195,1737331841792,-500.0,0.00021581,2]
[349624196,1737331841803,-461.45645395,0.00021581,2]
[349624197,1737331841813,-500.0,0.00021581,2]
[349624198,1737331841823,-500.0,0.00021581,2]
[349624199,1737331841832,-500.0,0.00021581,2]
[349624200,1737331841842,-229.226634,0.00021581,2]
[349624201,1737331841851,-500.0,0.00021581,2]
[349624202,1737331841861,-500.0,0.00021581,2]
[349624203,1737331841871,-500.0,0.00021581,2]
[349624204,1737331841880,-500.0,0.00021581,2]
[349624205,1737331841891,-500.0,0.00021581,2]
[349624206,1737331841900,-500.0,0.00021581,2]
[349624207,1737331841910,-500.0,0.00021581,2]
[349624208,1737331841920,-500.0,0.00021581,2]
[349624209,1737331841930,-500.0,0.00021581,2]
[349624210,1737331841940,-442.6427539,0.00021581,2]
[349624211,1737331841950,-500.0,0.00021581,2]
[349624212,1737331841959,-500.0,0.00021581,2]
[349624213,1737331841969,-500.0,0.00021581,2]
[349624214,1737331841979,-500.0,0.00021581,2]
[349624215,1737331841995,-500.0,0.00021581,2]
[349624216,1737331842007,-500.0,0.00021581,2]
[349624217,1737331842019,-500.0,0.00021581,2]
[349624218,1737331842031,-500.0,0.00021581,2]
[349624219,1737331842042,-500.0,0.00021581,2]
[349624220,1737331842054,-345.88,0.00021581,2]
[349624221,1737331842065,-500.0,0.00021581,2]
[349624222,1737331842076,-500.0,0.00021581,2]
[349624223,1737331842087,-566.64,0.00021581,2]
[349624224,1737331842102,-522.87747856,0.00021581,2]
[349624225,1737331842114,-500.0,0.00021581,2]
[349624226,1737331842126,-500.0,0.00021581,2]
[349624227,1737331842137,-500.0,0.00021581,2]
[349624228,1737331842149,-500.0,0.00021581,2]
[349624229,1737331842160,-500.0,0.00021581,2]
[349624230,1737331842170,-500.0,0.00021581,2]
[349624231,1737331842180,-500.0,0.00021581,2]
[349624232,1737331842190,-500.0,0.00021581,2]
[349624233,1737331842200,-500.0,0.00021581,2]
[349624234,1737331842210,-500.0,0.00021581,2]
[349624235,1737331842220,-210.81230165,0.00021581,2]
[349624236,1737331842235,-500.0,0.00021581,2]
[349624237,1737331842245,-500.0,0.00021581,2]
[349624238,1737331842255,-568.58,0.00021581,2]
[349624239,1737331842265,-500.0,0.00021581,2]
[349624240,1737331842275,-500.0,0.00021581,2]
[349624241,1737331842286,-2037.09,0.00021581,2]
[349624242,1737331842296,-500.0,0.00021581,2]
[349624243,1737331842305,-500.0,0.00021581,2]
[349624244,1737331842315,-500.0,0.00021581,2]
[349624245,1737331842324,-1003.46,0.00021581,2]
[349624246,1737331842333,-1650.22,0.00021581,2]
[349624247,1737331842345,-500.0,0.00021581,2]
[349624248,1737331842355,-500.0,0.00021581,2]
[349624249,1737331842366,-873.76,0.00021581,2]
[349624250,1737331842376,-500.0,0.00021581,2]
[349624251,1737331842386,-500.0,0.00021581,2]
[349624252,1737331842397,-500.0,0.00021581,2]
[349624253,1737331842408,-500.0,0.00021581,2]
[349624254,1737331842418,-564.75919668,0.00021581,2]
[349624255,1737331842430,-500.0,0.00021581,2]
[349624256,1737331842440,-500.0,0.00021582,2]
[349624257,1737331842452,-1308.01,0.00021582,2]
[349624258,1737331842464,-500.0,0.00021582,2]
[349624259,1737331842475,-595.86,0.00021582,2]
[349624260,1737331842492,-3190.58,0.00021582,2]
[349624261,1737331842504,-515.69,0.00021582,2]
[349624262,1737331842515,-646.9,0.00021582,2]
[349624263,1737331842527,-1007.69,0.00021582,2]
[349624264,1737331842540,-1003.12,0.00021582,2]
[349624265,1737331842551,-500.0,0.00021582,2]
[349624266,1737331842563,-865.71,0.00021582,2]
[349624267,1737331842575,-500.0,0.00021582,2]
[349624268,1737331842586,-500.0,0.00021582,2]
[349624269,1737331842597,-1789.74,0.00021582,2]
[349624270,1737331842609,-989.04,0.00021582,2]
[349624271,1737331842619,-542.42,0.00021582,2]
[349624272,1737331842629,-500.0,0.00021582,2]
[349624273,1737331842639,-500.0,0.00021582,2]
[349624274,1737331842649,-505.45,0.00021582,2]
[349624275,1737331842659,-2667.26,0.00021582,2]
[349624276,1737331842671,-500.0,0.00021582,2]
[349624278,1737331842681,-797.44,0.00021582,2]
[349624280,1737331842691,-981.74,0.00021582,2]
[349624282,1737331842701,-500.0,0.00021582,2]
[349624284,1737331842711,-535.63,0.00021582,2]
[349624285,1737331842722,-500.0,0.00021582,2]
[349624286,1737331842736,-500.0,0.00021583,2]
[349624287,1737331842746,-665.36931186,0.00021624,3]
[349624288,1737331842757,-543.23,0.00021632,2]
[349624289,1737331842767,-665.36931186,0.00021693,3]
[349624290,1737331842777,-1000.0,0.000217,2]
[349624292,1737331842787,-152.0,0.00021756,4]
[349624293,1737331842797,-665.36931186,0.00021762,3]
[349624295,1737331842807,-2040.20509308,0.0002177,2]
[349624297,1737331842817,-425.80543622,0.00021797,2]
[349624298,1737331842827,-1127.77,0.00021807,2]
[349624299,1737331842838,-500.0,0.00021824,2]
[349624301,1737331842848,-665.36931186,0.00021831,3]
[349624302,1737331842858,-500.0,0.00021854,2]
[349624303,1737331842869,-1407.19,0.00021854,2]
[349624305,1737331842879,-715.27,0.00021854,2]
[349624306,1737331842890,-500.0,0.00021854,2]
[349624308,1737331842901,-3428.58,0.00021854,2]
[349624310,1737331842912,-500.0,0.00021854,2]
[349624311,1737331842924,-577.275526,0.00021854,2]
[349624312,1737331842935,-716.0,0.00021854,2]
[349624314,1737331842949,-1480.72,0.00021854,2]
[349624316,1737331842960,-1596.848053,0.00021854,2]
[349624319,1737331842972,-500.0,0.00021854,2]
[349624322,1737331842997,-3819.17,0.00021854,2]
[349624323,1737331843013,-500.0,0.00021854,2]
[349624325,1737331843027,-500.0,0.00021854,2]
[349624326,1737331843039,-501.19,0.00021854,2]
[349624327,1737331843056,-500.0,0.00021854,2]
[349624328,1737331843068,-1758.89,0.00021854,2]
[349624329,1737331843082,-500.0,0.00021854,2]
[349624330,1737331843095,-553.95,0.00021854,2]
[349624331,1737331843107,-500.0,0.00021854,2]
[349624332,1737331843122,-855.39,0.00021854,2]
[349624333,1737331843135,-880.7,0.00021854,2]
[349624334,1737331843148,-500.0,0.00021854,2]
[349624335,1737331843161,-500.0,0.00021855,2]
[349624336,1737331843174,-500.0,0.00021855,2]
[349624337,1737331843188,-500.0,0.00021855,2]
[349624338,1737331843201,-500.0,0.00021855,2]
[349624339,1737331843214,-581.0,0.00021855,2]
[349624340,1737331843227,-500.0,0.00021855,2]
[349624341,1737331843247,-500.0,0.00021855,2]
[349624342,1737331843261,-500.0,0.00021855,2]
[349624343,1737331843274,-500.0,0.00021855,2]
[349624344,1737331843287,-500.0,0.00021855,2]
[349624345,1737331843300,-500.0,0.00021855,2]
[349624346,1737331843312,-500.0,0.00021855,2]
[349624347,1737331843324,-500.0,0.00021855,2]
[349624348,1737331843337,-500.0,0.00021855,2]
[349624349,1737331843350,-306.28,0.00021855,2]
[349624350,1737331843362,-500.0,0.00021855,2]
[349624351,1737331843373,-500.0,0.00021855,2]
[349624352,1737331843385,-500.0,0.00021855,2]
[349624353,1737331843396,-500.0,0.00021855,2]
[349624354,1737331843407,-500.0,0.00021855,2]
[349624355,1737331843419,-509.52,0.00021855,2]
[349624356,1737331843429,-500.0,0.00021855,2]
[349624357,1737331843438,-500.0,0.00021855,2]
[349624358,1737331843449,-500.0,0.00021855,2]
[349624359,1737331843458,-566.64,0.00021855,2]